bitfinex-derivatives/quotes_BTCF0:USTF0_20251202
["timestamp","ask_amount","ask_price","bid_price","bid_amount"]
[1764695687614,0.06298573,91040.0,91039.0,0.8972443]
[1764695687813,0.17613,91048.0,91047.0,0.010983]
[1764695688132,0.19897092,91048.0,91047.0,0.885503]
[1764695689007,0.19897092,91048.0,91047.0,0.87452]
[1764695689212,0.1871138,91040.0,91039.0,0.0117404]
[1764695689419,0.20992768,91040.0,91039.0,0.51368]
[1764695689618,0.20992768,91040.0,91038.0,0.0001648]
[1764695689619,0.136,91039.0,91038.0,0.0001648]
[1764695689919,0.136,91039.0,91023.0,0.3608]
[1764695689920,0.1469849,91031.0,91030.0,0.38132]
[1764695690122,0.16979878,91031.0,91030.0,0.38132]
[1764695690923,0.53059878,91031.0,91030.0,0.38132]
[1764695691116,0.136,91022.0,91021.0,0.0001648]
[1764695691314,0.1469879,91006.0,91005.0,0.3608]
[1764695691516,0.136,91006.0,91005.0,0.37274493]
[1764695692210,0.136,91006.0,91005.0,0.73354493]
[1764695694418,0.139,91006.0,91005.0,0.73354493]
[1764695695222,0.16183991,91006.0,91005.0,0.37274493]
[1764695698123,0.139,91006.0,91005.0,0.37274493]
[1764695701416,0.003,91006.0,91005.0,0.73354493]
[1764695701617,0.04013,91017.0,91008.0,0.0109876]
[1764695701816,0.0511156,91026.0,91014.0,0.3608]
[1764695702125,0.1361648,91015.0,91014.0,0.8744]
[1764695702925,0.15901304,91015.0,91014.0,0.8744]
[1764695703231,0.15901304,91015.0,91014.0,0.3608]
[1764695705432,0.16101304,91015.0,91014.0,0.3608]
[1764695705729,0.16201304,91015.0,91014.0,0.3608]
[1764695708424,0.16301304,91015.0,91014.0,0.3608]
[1764695708819,0.16001304,91015.0,91014.0,0.3608]
[1764695709120,0.16201304,91015.0,91014.0,0.3608]
[1764695709530,0.16201304,91015.0,91014.0,0.3717869]
[1764695709729,0.16301304,91015.0,91014.0,0.3717869]
[1764695710430,0.16301304,91015.0,91014.0,0.3608]
[1764695710927,0.17399984,91015.0,91014.0,0.3608]
[1764695712330,0.16301304,91015.0,91014.0,0.3608]
[1764695712529,0.02701304,91015.0,91014.0,0.3608]
[1764695712832,0.04013,91032.0,91014.0,0.3608]
[1764695712833,0.16232,91032.0,91031.0,0.0109849]
[1764695713032,0.18516528,91032.0,91031.0,0.87432]
[1764695715721,0.18516528,91032.0,91031.0,0.8853049]
[1764695715722,0.001,91032.0,91031.0,0.8853049]
[1764695715918,0.0001648,91041.0,91039.0,0.0109839]
[1764695716123,0.0001648,91041.0,91040.0,0.3608]
[1764695717124,0.16229,91056.0,91050.0,0.0109825]
[1764695717326,0.14501538,91055.0,91053.0,0.3608]
[1764695717630,0.14501538,91054.0,91053.0,0.3608]
[1764695718024,0.14501538,91054.0,91039.0,0.0109839]
[1764695718025,0.06103,91045.0,91044.0,0.3609648]
[1764695718230,0.15599867,91045.0,91044.0,0.0001648]
[1764695719134,0.15699867,91045.0,91044.0,0.0001648]
[1764695720838,0.15599867,91045.0,91044.0,0.0011648]
[1764695721534,0.15599867,91045.0,91044.0,0.0001648]
[1764695721725,0.15599867,91045.0,91044.0,0.0021648]
[1764695722123,0.15599867,91045.0,91044.0,4.8e-06]
[1764695722323,0.1624644,91035.0,91034.0,0.51344]
[1764695722532,0.18528987,91035.0,91034.0,0.51344]
[1764695725434,0.18628987,91035.0,91034.0,0.51344]
[1764695727335,0.11721,91034.0,91033.0,0.3608]
[1764695727633,0.14003547,91034.0,91033.0,0.3608]
[1764695727830,0.15148,91008.0,91003.0,0.3608]
[1764695728031,0.03427,91008.0,91006.0,0.51332]
[1764695728233,0.15148,91008.0,91006.0,0.51332]
[1764695728634,0.09131,91008.0,91006.0,0.51332]
[1764695728831,0.0109878,91007.0,91006.0,0.51332]
[1764695729737,0.1281978,91007.0,91006.0,0.51332]
[1764695731543,0.1291978,91007.0,91006.0,0.51332]
[1764695732038,0.15105778,91007.0,91006.0,0.51332]
[1764695732225,0.15205778,91007.0,91006.0,0.51332]
[1764695733130,0.02385998,91007.0,91006.0,0.51332]
[1764695733539,0.001,91007.0,91006.0,0.51332]
[1764695734141,0.0119878,91007.0,91006.0,0.51332]
[1764695734335,0.0710778,91007.0,91006.0,0.51332]
[1764695734536,0.1158,91007.0,91006.0,0.51332]
[1764695734743,0.1148,91007.0,91006.0,0.51332]
[1764695734927,0.1158,91007.0,91006.0,0.51332]
[1764695735530,0.1148,91006.0,91005.0,0.01189476]
[1764695735830,0.1148,91006.0,91005.0,0.51332]
[1764695736026,0.001,91007.0,91005.0,0.51332]
[1764695736237,0.001,91007.0,91005.0,0.53584566]
[1764695736554,0.001,91007.0,91005.0,0.52485766]
[1764695736837,0.1148,91007.0,91005.0,0.52485766]
[1764695737739,0.1148,91006.0,91005.0,0.52585766]
[1764695738142,0.1148,91006.0,91005.0,0.001]
[1764695738350,0.1148,91006.0,91005.0,0.51432]
[1764695738543,0.1376637,91006.0,91005.0,0.51432]
[1764695739536,0.1376637,91006.0,91005.0,0.51332]
[1764695739738,0.10615,91004.0,91003.0,0.3608]
[1764695739937,0.10615,91004.0,90997.0,0.4450448]
[1764695739938,0.1171389,90998.0,90997.0,0.4450448]
[1764695740238,0.14000463,90998.0,90997.0,0.0001648]
[1764695741238,0.1171389,90998.0,90997.0,0.0001648]
[1764695741745,0.13999565,90998.0,90997.0,0.0001648]
[1764695744349,0.12900675,90998.0,90997.0,0.0001648]
[1764695744645,0.10615,90998.0,90997.0,0.0001648]
[1764695746346,0.1289938,90998.0,90997.0,0.0001648]
[1764695746755,0.0109901,90988.0,90985.0,0.3608]
[1764695747052,0.10615,90986.0,90985.0,0.3608]
[1764695747254,0.10615,90986.0,90985.0,0.42285989]
[1764695747444,0.10615,90986.0,90985.0,0.47340989]
[1764695747840,0.0001648,90995.0,90994.0,0.0109894]
[1764695748162,0.07645582,90995.0,90994.0,0.1120894]
[1764695748349,0.12916582,90995.0,90994.0,0.4619]
[1764695750048,0.1171403,90986.0,90985.0,0.47340989]
[1764695750237,0.1171403,90986.0,90985.0,0.98676989]
[1764695750443,0.1171403,90986.0,90985.0,0.93621989]
[1764695750938,0.1171403,90986.0,90985.0,0.98676989]
[1764695752451,0.10615,90986.0,90985.0,0.98676989]
[1764695752655,0.0109902,90987.0,90986.0,0.1011]
[1764695752955,0.03291,90992.0,90989.0,0.1011]
[1764695752956,0.11714,90990.0,90989.0,0.1011]
[1764695753357,0.1404196,90990.0,90989.0,0.1011]
[1764695753545,0.1294296,90990.0,90989.0,0.11209]
[1764695753745,0.1294296,90990.0,90989.0,0.1011]
[1764695753941,0.10715,90990.0,90989.0,0.1011]
[1764695754346,0.13043305,90990.0,90989.0,0.1011]
[1764695755759,0.12943305,90990.0,90989.0,0.1011]
[1764695756546,0.13043305,90990.0,90989.0,0.1011]
[1764695758347,0.02428305,90990.0,90989.0,0.1011]
[1764695758554,0.001,90990.0,90989.0,0.1011]
[1764695759461,0.0001648,90995.0,90994.0,0.1120894]
[1764695759650,0.0001648,90995.0,90994.0,0.9862094]
[1764695760350,0.13906,91016.0,91015.0,0.1011]
[1764695760662,0.16236289,91016.0,91015.0,0.1011]
[1764695761052,0.02330289,91016.0,91015.0,0.1011]
[1764695761561,0.13906,91024.0,91023.0,0.1120859]
[1764695761755,0.16252071,91024.0,91023.0,0.9862059]
[1764695762550,0.16352071,91024.0,91023.0,0.9862059]
[1764695763261,0.07790071,91024.0,91023.0,0.9862059]
[1764695763453,0.13603071,91024.0,91023.0,0.9862059]
[1764695764356,0.16957071,91024.0,91023.0,0.9862059]
[1764695764757,0.02446071,91024.0,91023.0,0.9862059]
[1764695764958,0.0011648,91024.0,91023.0,0.9862059]
[1764695765857,0.05751,91040.0,91039.0,0.10524]
[1764695766063,0.08077981,91040.0,91039.0,0.97928]
[1764695766463,0.13890981,91040.0,91039.0,0.97928]
[1764695766764,0.17244981,91040.0,91039.0,0.97924]
[1764695767466,0.14918,91040.0,91039.0,0.97924]
[1764695767865,0.15018,91040.0,91039.0,0.97924]
[1764695769162,0.001,91040.0,91039.0,1.34004]
[1764695769365,0.03354,91072.0,91071.0,0.10492]
[1764695769366,0.14918,91072.0,91071.0,0.10492]
[1764695769662,0.1266214,91060.0,91059.0,0.3608]
[1764695769856,0.11564,91060.0,91059.0,0.43276]
[1764695770161,0.11564,91060.0,91059.0,0.53768]
[1764695770566,0.11564,91060.0,91059.0,0.5494456]
[1764695771059,0.47644,91060.0,91059.0,0.5494456]
[1764695771267,0.47644,91060.0,91059.0,0.0117656]
[1764695771462,0.49963192,91060.0,91059.0,0.51312]
[1764695772164,0.13883192,91060.0,91059.0,0.51312]
[1764695772461,0.13983192,91060.0,91059.0,0.61804]
[1764695772655,0.11664,91060.0,91059.0,0.61804]
[1764695772851,0.13982324,91060.0,91059.0,0.61804]
[1764695773260,0.11664,91060.0,91059.0,0.61804]
[1764695773660,0.13981458,91060.0,91059.0,0.51312]
[1764695774066,0.13981458,91060.0,91059.0,0.61804]
[1764695774067,0.02417458,91060.0,91059.0,0.61804]
[1764695774262,0.001,91060.0,91059.0,0.97884]
[1764695774658,0.00016471,91069.0,91068.0,0.10492]
[1764695774853,0.05767471,91069.0,91068.0,0.46572]
[1764695775668,0.00016471,91069.0,91068.0,0.46572]
[1764695776967,0.00116471,91069.0,91068.0,0.46572]
[1764695778154,0.00027447,91086.0,91068.0,0.46572]
[1764695778155,0.1266184,91085.0,91084.0,0.10492]
[1764695778459,0.11564,91085.0,91084.0,0.97868]
[1764695778866,0.00027447,91086.0,91085.0,0.10492]
[1764695780566,0.1266184,91085.0,91084.0,0.77406]
[1764695780758,0.1266184,91085.0,91084.0,1.28694]
[1764695780961,0.11564,91085.0,91084.0,1.28694]
[1764695781170,0.00027447,91086.0,91085.0,0.10492]
[1764695781568,0.05778447,91086.0,91085.0,0.10492]
[1764695783074,0.05878447,91086.0,91085.0,0.10492]
[1764695783971,0.11691447,91086.0,91085.0,0.10492]
[1764695784277,0.00127447,91086.0,91085.0,0.10492]
[1764695785678,0.11691447,91086.0,91085.0,0.10492]
[1764695786277,0.11591447,91086.0,91085.0,0.10492]
[1764695786465,0.11691447,91086.0,91085.0,0.10492]
[1764695787880,0.12789277,91086.0,91085.0,0.10492]
[1764695788078,0.1266193,91077.0,91076.0,0.00016471]
[1764695788277,0.14969445,91077.0,91076.0,0.00016471]
[1764695788578,0.14969445,91077.0,91076.0,0.51288471]
[1764695788772,0.14969445,91077.0,91076.0,0.00016471]
[1764695788974,0.14969445,91077.0,91076.0,0.51288471]
[1764695789577,0.11691447,91086.0,91085.0,0.10492]
[1764695789766,0.14000693,91086.0,91085.0,0.6176]
[1764695789971,0.02436693,91086.0,91085.0,0.6176]
[1764695790171,0.00127447,91086.0,91085.0,0.6176]
[1764695791175,0.00016471,91095.0,91094.0,0.0634373]
[1764695791374,0.00016471,91095.0,91094.0,0.9784]
[1764695791678,0.05751,91085.0,91084.0,0.4766985]
[1764695792073,0.11564,91085.0,91084.0,0.9784]
[1764695793879,0.13975454,91085.0,91084.0,0.9784]
[1764695796779,0.13875454,91085.0,91084.0,0.9784]
[1764695797687,0.13975454,91085.0,91084.0,0.9784]
[1764695798774,0.02411454,91085.0,91084.0,0.9784]
[1764695800090,0.02311454,91085.0,91084.0,0.9784]
[1764695804980,0.12425454,91085.0,91084.0,0.9784]
[1764695805182,0.12425454,91085.0,91084.0,0.46572]
[1764695805693,0.12425454,91085.0,91084.0,0.97824]
[1764695805894,0.12425454,91085.0,91084.0,0.61744]
[1764695806292,0.12425454,91085.0,91084.0,0.97824]
[1764695806892,0.12425454,91085.0,91084.0,0.87332]
[1764695807083,0.12425454,91085.0,91084.0,0.94526]
[1764695807285,0.12525454,91085.0,91084.0,0.94526]
[1764695808995,0.12525454,91085.0,91084.0,0.87332]
[1764695809190,0.12525454,91085.0,91084.0,0.90929]
[1764695809386,0.12525454,91085.0,91084.0,0.94526]
[1764695811986,0.13623234,91085.0,91084.0,0.94526]
[1764695812192,0.13523234,91085.0,91084.0,0.94526]
[1764695812393,0.13623234,91085.0,91084.0,0.94526]
[1764695812594,0.12525454,91085.0,91084.0,0.94526]
[1764695813906,0.07440454,91085.0,91084.0,0.94526]
[1764695814101,0.02411454,91085.0,91084.0,0.94526]
[1764695814799,0.02311454,91085.0,91084.0,0.94526]
[1764695816210,0.02311454,91085.0,91084.0,0.94626]
[1764695816800,0.02311454,91085.0,91084.0,0.94526]
[1764695817308,0.00016471,91095.0,91094.0,0.07194]
[1764695817506,0.00016471,91095.0,91094.0,0.9561562]
[1764695818007,0.0590408,91103.0,91102.0,0.07194]
[1764695818211,0.0590408,91106.0,91105.0,0.07194]
[1764695818401,0.1428708,91107.0,91106.0,0.07194]
[1764695818604,0.0590408,91108.0,91107.0,0.0109746]
[1764695818800,0.0590408,91109.0,91107.0,0.0829146]
[1764695819000,0.0590408,91109.0,91108.0,0.07194]
[1764695819202,0.0590408,91110.0,91109.0,0.0829144]
[1764695819402,0.0590408,91111.0,91110.0,0.07194]
[1764695819802,0.00010887,91117.0,91116.0,0.0109735]
[1764695820011,0.10124887,91117.0,91116.0,0.9561535]
[1764695820315,0.00010887,91117.0,91116.0,0.9561535]
[1764695821110,0.00027435,91126.0,91116.0,0.9561535]
[1764695821111,0.00027435,91126.0,91125.0,0.07194]
[1764695821310,0.00027435,91126.0,91125.0,0.94514]
[1764695821708,0.10114,91134.0,91133.0,0.07194]
[1764695821901,0.10114,91134.0,91133.0,0.94514]
[1764695823917,0.10114,91134.0,91133.0,0.95114]
[1764695824123,0.10114,91134.0,91133.0,0.95314]
[1764695824820,0.12424,91144.0,91143.0,0.0507]
[1764695825021,0.0927,91151.0,91150.0,0.0616694]
[1764695825216,0.0927,91151.0,91150.0,0.5739894]
[1764695825612,0.1352082,91160.0,91159.0,0.0507]
[1764695825816,0.1352082,91160.0,91159.0,0.56302]
[1764695826322,0.12424,91160.0,91159.0,0.56302]
[1764695827117,0.12424,91160.0,91159.0,0.58070705]
[1764695828118,0.040766,91179.0,91165.0,0.0507]
[1764695828119,0.04549423,91166.0,91165.0,0.0507]
[1764695828311,0.00027423,91166.0,91165.0,0.4115]
[1764695828716,0.1225,91179.0,91178.0,0.0507]
[1764695828915,0.1225,91179.0,91178.0,0.92374]
[1764695829112,0.07502,91179.0,91178.0,0.92374]
[1764695829518,0.1225,91179.0,91178.0,0.92374]
[1764695830224,0.1225,91184.0,91183.0,0.0507]
[1764695830421,0.14550717,91184.0,91183.0,0.0507]
[1764695831331,0.1225,91184.0,91183.0,0.0507]
[1764695831519,0.1225,91184.0,91183.0,0.0517]
[1764695832631,0.1225,91184.0,91183.0,0.0626655]
[1764695832823,0.1225,91184.0,91183.0,0.0676655]
[1764695833021,0.04748,91191.0,91183.0,0.006]
[1764695833225,0.0927,91191.0,91190.0,0.4115]
[1764695833428,0.0927,91191.0,91190.0,0.92358]
[1764695834126,0.04103691,91206.0,91199.0,0.0507]
[1764695834127,0.04526,91200.0,91199.0,0.0507]
[1764695834323,4e-05,91200.0,91199.0,0.92354]
[1764695834529,0.04526,91200.0,91199.0,0.92354]
[1764695834828,0.1037034,91200.0,91199.0,0.92354]
[1764695835033,0.09274,91200.0,91199.0,0.92354]
[1764695835224,0.00027411,91206.0,91205.0,0.0507]
[1764695835424,0.12160863,91206.0,91205.0,0.0507]
[1764695835624,0.1225,91215.0,91214.0,0.05248]
[1764695836130,0.07502,91215.0,91214.0,0.06387852]
[1764695836334,0.1225,91215.0,91214.0,0.06387852]
[1764695836533,0.1225,91215.0,91214.0,0.57587852]
[1764695836736,0.1334616,91215.0,91214.0,0.57587852]
[1764695836924,0.1334616,91215.0,91214.0,0.01139852]
[1764695837125,0.0927,91209.0,91208.0,0.3608]
[1764695837334,0.0927,91209.0,91208.0,0.92199921]
[1764695837625,0.0927,91209.0,91208.0,0.87276]
[1764695837934,0.0927,91209.0,91208.0,0.88417254]
[1764695838330,0.0927,91209.0,91208.0,0.87276]
[1764695838533,0.0927,91209.0,91208.0,0.51196]
[1764695839034,0.1225,91206.0,91205.0,0.52343517]
[1764695839232,0.1225,91206.0,91205.0,0.51192]
[1764695839430,0.1225,91206.0,91205.0,0.52341464]
[1764695839632,0.1225,91206.0,91205.0,0.54965464]
[1764695839931,0.1225,91206.0,91205.0,0.01149464]
[1764695840232,0.0927,91200.0,91199.0,0.3608]
[1764695840425,0.1036634,91200.0,91199.0,0.8498]
[1764695841033,0.1036634,91200.0,91199.0,0.489]
[1764695842123,0.3608,91204.0,91190.0,0.00016451]
[1764695842124,0.1036645,91191.0,91190.0,0.00016451]
[1764695842536,0.1036645,91191.0,91190.0,0.02640451]
[1764695843032,0.07502,91197.0,91196.0,0.0634439]
[1764695843230,0.0298,91197.0,91196.0,0.0634439]
[1764695843436,0.1225,91206.0,91205.0,0.0634428]
[1764695843736,0.0298,91206.0,91205.0,0.4242428]
[1764695844134,0.1036618,91214.0,91213.0,0.02624]
[1764695844328,0.02034966,91216.0,91213.0,0.41328]
[1764695844538,0.00938806,91216.0,91215.0,0.05248]
[1764695845838,0.05460806,91216.0,91215.0,0.05248]
[1764695846031,0.10208806,91216.0,91215.0,0.05248]
[1764695846233,0.00938806,91216.0,91215.0,0.05248]
[1764695846436,0.05460806,91216.0,91215.0,0.05248]
[1764695846639,0.0927,91214.0,91213.0,0.3608]
[1764695846841,0.0927,91214.0,91213.0,0.38704]
[1764695847139,0.05460806,91216.0,91215.0,0.05248]
[1764695847335,0.10208806,91216.0,91215.0,0.05248]
[1764695848236,0.00938806,91216.0,91215.0,0.05248]
[1764695848438,0.0927,91214.0,91213.0,0.41328]
[1764695848642,0.04522,91196.0,91195.0,0.41328]
[1764695848831,0.0298,91210.0,91195.0,0.41328]
[1764695848832,0.1334622,91210.0,91209.0,0.05248]
[1764695849143,0.15629773,91210.0,91209.0,0.05248]
[1764695849331,0.15631514,91210.0,91209.0,0.05248]
[1764695850231,0.14535294,91210.0,91209.0,0.05248]
[1764695850434,0.02285294,91210.0,91209.0,0.05248]
[1764695850738,0.0109594,91234.0,91215.0,0.0634416]
[1764695850941,0.1334594,91234.0,91220.0,0.010961]
[1764695851148,0.0927,91230.0,91229.0,0.3608]
[1764695851349,0.0927,91230.0,91229.0,0.85748]
[1764695851736,0.0927,91230.0,91229.0,0.90996]
[1764695851948,0.0927,91230.0,91229.0,0.85748]
[1764695852939,0.0927,91230.0,91229.0,0.90231]
[1764695853135,0.04522,91230.0,91229.0,0.90431]
[1764695853438,0.08885,91230.0,91229.0,0.85948]
[1764695853946,0.08885,91230.0,91229.0,0.87759]
[1764695854453,0.07529,91234.0,91233.0,0.03622]
[1764695854750,0.07529,91234.0,91230.0,0.0109598]
[1764695854751,0.08885,91230.0,91229.0,0.3708]
[1764695854951,0.08885,91230.0,91229.0,0.8824]
[1764695855346,0.08885,91230.0,91229.0,0.8804]
[1764695855546,0.08885,91230.0,91229.0,0.89851]
[1764695855748,0.08885,91230.0,91229.0,0.91662]
[1764695855947,0.08885,91230.0,91229.0,0.8724]
[1764695856249,0.08885,91230.0,91229.0,0.8744]
[1764695857551,0.05,91236.0,91235.0,0.03622]
[1764695858053,0.08885,91233.0,91232.0,0.3608]
[1764695858240,0.08885,91233.0,91232.0,0.87236]
[1764695858443,0.04336,91233.0,91232.0,0.90858]
[1764695858637,0.05,91236.0,91235.0,0.03822]
[1764695859740,0.05,91236.0,91235.0,0.03622]
[1764695859946,0.13885,91236.0,91235.0,0.03622]
[1764695860146,0.13885,91236.0,91235.0,0.54774]
[1764695860644,0.05,91236.0,91235.0,0.54774]
[1764695860840,0.08885,91233.0,91232.0,0.3608]
[1764695861044,0.08885,91233.0,91232.0,0.87232]
[1764695861452,0.0609591,91236.0,91232.0,0.87232]
[1764695861453,0.05,91236.0,91235.0,0.03622]
[1764695862659,0.07293684,91236.0,91235.0,0.03622]
[1764695863059,0.05,91236.0,91235.0,0.03622]
[1764695863251,0.00027399,91246.0,91245.0,0.047178]
[1764695863443,0.0232088,91246.0,91245.0,0.919458]
[1764695863757,0.0665688,91246.0,91245.0,0.9085]
[1764695863952,0.1120588,91246.0,91245.0,0.9085]
[1764695864342,0.1230167,91246.0,91245.0,0.3608]
[1764695864547,0.1120588,91246.0,91245.0,0.89039]
[1764695864747,0.1120588,91246.0,91245.0,0.9085]
[1764695864964,0.1120588,91246.0,91245.0,0.87228]
[1764695866664,0.1120588,91246.0,91245.0,0.3608]
[1764695866857,0.1120588,91246.0,91245.0,0.85976]
[1764695867557,0.1120588,91246.0,91245.0,0.49896]
[1764695867760,0.1120588,91246.0,91236.0,0.00016442]
[1764695867761,0.099809,91237.0,91236.0,0.51156442]
[1764695867951,0.12274381,91237.0,91236.0,0.51156442]
[1764695869762,0.02293481,91237.0,91236.0,0.90858442]
[1764695870356,0.11178481,91237.0,91236.0,0.90858442]
[1764695870556,0.11178481,91237.0,91236.0,0.39718442]
[1764695870755,0.06629481,91237.0,91236.0,0.90858442]
[1764695870961,0.02393481,91237.0,91236.0,0.90858442]
[1764695873765,0.001,91237.0,91236.0,0.90858442]
[1764695873958,0.001,91237.0,91236.0,0.90854442]
[1764695877071,0.08985,91237.0,91236.0,0.36096442]
[1764695877269,0.11255159,91237.0,91236.0,0.39718442]
[1764695877472,0.02370159,91237.0,91236.0,0.36096442]
[1764695877668,0.02370159,91237.0,91236.0,0.39718442]
[1764695878972,0.11255159,91237.0,91236.0,0.39718442]
[1764695879765,0.00027399,91246.0,91245.0,0.047178]
[1764695879965,0.00027399,91246.0,91245.0,0.919298]
[1764695880970,0.05885906,91269.0,91268.0,0.03568]
[1764695881274,0.11443,91270.0,91269.0,0.03568]
[1764695881774,0.11443,91270.0,91269.0,0.01131718]
[1764695881969,0.11443,91270.0,91269.0,0.03568]
[1764695882274,0.11443,91270.0,91269.0,0.04696526]
[1764695882776,0.11608,91280.0,91279.0,0.0288]
[1764695883069,0.11608,91280.0,91279.0,0.90092]
[1764695883470,0.11608,91280.0,91279.0,0.87212]
[1764695883973,0.11608,91280.0,91279.0,0.87312]
[1764695884369,0.02562,91280.0,91279.0,0.90692]
[1764695885661,4e-05,91280.0,91279.0,0.90692]
[1764695886180,0.11682,91280.0,91279.0,0.90692]
[1764695886382,0.11682,91280.0,91279.0,0.87804]
[1764695886678,0.11682,91280.0,91279.0,0.006]
[1764695887379,4e-05,91280.0,91279.0,0.0348]
[1764695887575,0.07242,91280.0,91279.0,0.0348]
[1764695887781,0.02636,91280.0,91279.0,0.0348]
[1764695888572,0.07242,91280.0,91279.0,0.0348]
[1764695888776,0.11682,91280.0,91279.0,0.006]
[1764695889078,0.11682,91280.0,91279.0,0.51748]
[1764695889284,4e-05,91280.0,91279.0,0.54628]
[1764695890080,0.07242,91280.0,91279.0,0.54528]
[1764695890274,0.11682,91280.0,91279.0,0.55028]
[1764695890471,0.11682,91280.0,91279.0,0.5612339]
[1764695890673,4e-05,91280.0,91279.0,0.5612339]
[1764695891285,0.02636,91280.0,91279.0,0.5612339]
[1764695891486,0.07242,91280.0,91279.0,0.5612339]
[1764695891682,4e-05,91280.0,91279.0,0.5612339]
[1764695892277,0.11682,91280.0,91279.0,0.0388]
[1764695892577,0.11682,91280.0,91279.0,0.53576]
[1764695892775,0.11682,91280.0,91279.0,0.55016]
[1764695892974,0.07242,91280.0,91279.0,0.55016]
[1764695893180,0.02636,91280.0,91279.0,0.55016]
[1764695893473,4e-05,91280.0,91279.0,0.55016]
[1764695895589,0.11682,91280.0,91279.0,0.0244]
[1764695895885,0.11682,91280.0,91276.0,0.3608]
[1764695895886,0.09046,91277.0,91276.0,0.3608]
[1764695896086,0.1277362,91260.0,91256.0,0.3608]
[1764695896380,0.05885906,91278.0,91269.0,0.08969]
[1764695896581,0.09046,91272.0,91271.0,0.45049]
[1764695896787,0.11307121,91272.0,91271.0,0.3608]
[1764695897372,0.11307121,91272.0,91271.0,0.45049]
[1764695898179,0.06867121,91272.0,91271.0,0.45049]
[1764695898373,0.02261121,91272.0,91271.0,0.45049]
[1764695898886,0.06967121,91272.0,91271.0,0.45049]
[1764695899083,0.11407121,91272.0,91271.0,0.45049]
[1764695899775,0.11407121,91272.0,91271.0,0.3608]
[1764695899979,0.02632,91267.0,91259.0,0.01121932]
[1764695900177,0.02261121,91266.0,91265.0,0.08969]
[1764695900379,0.04706,91272.0,91271.0,0.08969]
[1764695900586,0.06969115,91272.0,91271.0,0.08969]
[1764695900789,0.02363115,91272.0,91271.0,0.08969]
[1764695901074,0.02363115,91272.0,91271.0,0.60121]
[1764695901282,0.11409115,91272.0,91271.0,0.60121]
[1764695901679,0.11409115,91272.0,91271.0,0.51152]
[1764695901874,0.11309115,91272.0,91271.0,0.51152]
[1764695902791,0.11309115,91272.0,91268.0,0.0109552]
[1764695902792,0.09046,91266.0,91265.0,0.40681]
[1764695902989,0.11309115,91266.0,91265.0,0.9292856]
[1764695903178,0.11309115,91266.0,91265.0,0.9729656]
[1764695903987,0.0109552,91269.0,91268.0,0.1006453]
[1764695904176,0.0570152,91269.0,91268.0,0.1006453]
[1764695904379,0.04606,91269.0,91268.0,0.1006453]
[1764695904789,0.007,91272.0,91271.0,0.1006449]
[1764695904990,0.006,91272.0,91271.0,0.08969]
[1764695905190,0.11910822,91272.0,91271.0,0.08969]
[1764695905994,0.12010822,91272.0,91271.0,0.08969]
[1764695906296,0.11410822,91272.0,91271.0,0.08969]
[1764695907193,0.12010822,91272.0,91271.0,0.08969]
[1764695907392,0.02964822,91272.0,91271.0,0.08969]
[1764695907792,0.12010822,91272.0,91271.0,0.08969]
[1764695908179,0.007,91272.0,91271.0,0.08969]
[1764695908383,0.0109527,91290.0,91270.0,0.0243349]
[1764695908384,0.08521906,91300.0,91285.0,0.08969]
[1764695908587,0.09073387,91286.0,91285.0,0.3608]
[1764695908802,0.09046,91278.0,91277.0,0.3608]
[1764695908981,0.09046,91278.0,91277.0,0.8464]
[1764695909180,0.09073387,91286.0,91285.0,0.1006432]
[1764695909387,0.09073387,91286.0,91285.0,0.4614432]
[1764695909789,0.00027387,91286.0,91285.0,0.4614432]
[1764695910491,0.00027387,91286.0,91285.0,0.4634432]
[1764695910887,0.04633387,91286.0,91285.0,0.4634432]
[1764695911091,0.04633387,91286.0,91285.0,0.4684432]
[1764695911298,0.09073387,91286.0,91285.0,0.45749]
[1764695912392,0.04633387,91286.0,91285.0,0.45749]
[1764695913397,0.00027387,91286.0,91285.0,0.45749]
[1764695914699,0.04633387,91286.0,91285.0,0.45749]
[1764695914899,0.09030387,91286.0,91285.0,0.3678]
[1764695915098,0.09030387,91286.0,91285.0,0.007]
[1764695915992,0.09030387,91286.0,91285.0,0.09801]
[1764695916197,0.09030387,91286.0,91285.0,0.45881]
[1764695916406,0.09030387,91286.0,91285.0,0.3678]
[1764695918702,0.09030387,91286.0,91285.0,0.41119]
[1764695919004,0.09030387,91286.0,91285.0,0.45881]
[1764695919597,0.00027387,91286.0,91285.0,0.45881]
[1764695920705,0.02287451,91286.0,91285.0,0.45881]
[1764695921603,0.06893451,91286.0,91285.0,0.45881]
[1764695922604,0.02287451,91286.0,91285.0,0.45881]
[1764695923701,0.06893451,91286.0,91285.0,0.45881]
[1764695924102,0.02287451,91286.0,91285.0,0.45881]
[1764695924515,4e-05,91300.0,91299.0,0.1019615]
[1764695924808,4e-05,91300.0,91299.0,0.9745615]
[1764695924809,0.11799,91300.0,91299.0,0.9745615]
[1764695925799,0.11799,91300.0,91299.0,0.97161]
[1764695926206,4e-05,91300.0,91299.0,0.97161]
[1764695927009,4e-05,91300.0,91299.0,0.46181]
[1764695927211,4e-05,91300.0,91299.0,0.97361]
[1764695930905,0.09003,91313.0,91312.0,0.1002099]
[1764695931105,0.09003,91313.0,91312.0,0.9726899]
[1764695931599,0.11635,91320.0,91319.0,0.08926]
[1764695932111,4e-05,91330.0,91325.0,0.08926]
[1764695932316,0.02796,91350.0,91349.0,0.0999256]
[1764695932317,4e-05,91350.0,91349.0,0.0999256]
[1764695932610,0.07402,91350.0,91349.0,0.96218]
[1764695932812,0.02796,91350.0,91349.0,0.96218]
[1764695933110,0.00027363,91366.0,91365.0,0.0109436]
[1764695933408,0.00027363,91366.0,91365.0,0.8841436]
[1764695934202,4e-05,91400.0,91365.0,1.9796505]
[1764695934404,4e-05,91400.0,91399.0,0.3608]
[1764695934603,4e-05,91400.0,91399.0,0.8696]
[1764695935007,4e-05,91400.0,91399.0,0.88112437]
[1764695935312,0.0109353,91435.0,91399.0,0.99055451]
[1764695935515,4e-05,91450.0,91417.0,0.3608]
[1764695935706,0.02792,91434.0,91418.0,0.51376]
[1764695935908,0.09003,91429.0,91428.0,0.3608]